[Event "Titled Tuesday Blitz March 21 Early 2023"]
[White "Itgelt, Khuyagtsogt"]
[Black "Hirneise, Jens"]
[WhiteFideId "4902912"]
[BlackFideId "24614734"]
[WhiteElo "2227"]
[BlackElo "2345"]
[Result "1/2-1/2"]
[Round "10"]
[TimeControl "180+2"]
[Date "2023.03.21"]
[WhiteClock "0:00:20"]
[BlackClock "0:01:17"]

1. d4 {[%clk 0:03:00]}  d5 {[%clk 0:02:57]} 2. c4 {[%clk 0:03:01]}  dxc4 {[%clk 0:02:58]} 3. Nf3 {[%clk 0:02:56]}  Nf6 {[%clk 0:02:56]} 4. g3 {[%clk 0:02:53]}  b5 {[%clk 0:02:51]} 5. Bg2 {[%clk 0:02:52]}  Bb7 {[%clk 0:02:51]} 6. O-O {[%clk 0:02:53]}  e6 {[%clk 0:02:49]} 7. a4 {[%clk 0:02:38]}  a6 {[%clk 0:02:45]} 8. Bg5 {[%clk 0:02:25]}  Be7 {[%clk 0:02:44]} 9. Nbd2 {[%clk 0:02:16]}  O-O {[%clk 0:02:43]} 10. Qc2 {[%clk 0:02:16]}  h6 {[%clk 0:02:37]} 11. Bxf6 {[%clk 0:02:16]}  Bxf6 {[%clk 0:02:38]} 12. Ng5 {[%clk 0:02:16]}  hxg5 {[%clk 0:02:25]} 13. Bxb7 {[%clk 0:02:16]}  Ra7 {[%clk 0:02:25]} 14. Bg2 {[%clk 0:02:08]}  Qxd4 {[%clk 0:02:25]} 15. axb5 {[%clk 0:02:07]}  Qxb2 {[%clk 0:02:21]} 16. Qxb2 {[%clk 0:02:07]}  Bxb2 {[%clk 0:02:22]} 17. Ra2 {[%clk 0:02:08]}  c3 {[%clk 0:02:22]} 18. Nc4 {[%clk 0:02:08]}  axb5 {[%clk 0:02:07]} 19. Rxa7 {[%clk 0:02:08]}  bxc4 {[%clk 0:02:08]} 20. Rxc7 {[%clk 0:01:50]}  c2 {[%clk 0:02:05]} 21. Rxc4 {[%clk 0:01:50]}  c1=Q {[%clk 0:02:05]} 22. Rcxc1 {[%clk 0:01:51]}  Bxc1 {[%clk 0:02:06]} 23. Rxc1 {[%clk 0:01:52]}  Nd7 {[%clk 0:02:06]} 24. Rc7 {[%clk 0:01:43]}  Nf6 {[%clk 0:02:04]} 25. Ra7 {[%clk 0:01:35]}  Rd8 {[%clk 0:01:58]} 26. Ra8 {[%clk 0:01:34]}  Rxa8 {[%clk 0:01:55]} 27. Bxa8 {[%clk 0:01:35]}  g4 {[%clk 0:01:53]} 28. Kg2 {[%clk 0:01:34]}  g5 {[%clk 0:01:47]} 29. Bc6 {[%clk 0:01:33]}  Kg7 {[%clk 0:01:47]} 30. e3 {[%clk 0:01:28]}  Kg6 {[%clk 0:01:46]} 31. e4 {[%clk 0:01:22]}  Nh5 {[%clk 0:01:34]} 32. e5 {[%clk 0:01:19]}  Kf5 {[%clk 0:01:26]} 33. Be8 {[%clk 0:01:14]}  Kg6 {[%clk 0:01:21]} 34. Ba4 {[%clk 0:00:58]}  Kf5 {[%clk 0:01:20]} 35. Be8 {[%clk 0:00:35]}  Kg6 {[%clk 0:01:20]} 36. Bb5 {[%clk 0:00:34]}  Kf5 {[%clk 0:01:17]} 37. Be8 {[%clk 0:00:20]} 1/2-1/2


[Site "https://www.chess.com"]

[Event "Titled Tuesday Blitz March 21 Early 2023"]
[White "Reprintsev, Alexander"]
[Black "Chernobay, Artem"]
[WhiteFideId "14100541"]
[BlackFideId "4167406"]
[WhiteElo "2229"]
[BlackElo "2474"]
[Result "1-0"]
[Round "10"]
[TimeControl "180+2"]
[Date "2023.03.21"]
[WhiteClock "0:01:11"]
[BlackClock "0:00:02"]

1. e4 {[%clk 0:02:59]}  c5 {[%clk 0:02:59]} 2. b3 {[%clk 0:02:57]}  Nf6 {[%clk 0:02:58]} 3. e5 {[%clk 0:02:57]}  Nd5 {[%clk 0:02:58]} 4. Nc3 {[%clk 0:02:57]}  e6 {[%clk 0:02:55]} 5. Ne4 {[%clk 0:02:54]}  Nc6 {[%clk 0:02:46]} 6. Bb2 {[%clk 0:02:54]}  Be7 {[%clk 0:02:39]} 7. Nf3 {[%clk 0:02:54]}  f5 {[%clk 0:02:26]} 8. Nc3 {[%clk 0:02:53]}  Nf4 {[%clk 0:02:12]} 9. g3 {[%clk 0:02:49]}  Ng6 {[%clk 0:02:11]} 10. Qe2 {[%clk 0:02:49]}  a6 {[%clk 0:02:06]} 11. O-O-O {[%clk 0:02:45]}  Nd4 {[%clk 0:01:53]} 12. Nxd4 {[%clk 0:02:41]}  cxd4 {[%clk 0:01:54]} 13. Nb1 {[%clk 0:02:40]}  Qa5 {[%clk 0:01:46]} 14. a4 {[%clk 0:02:31]}  b5 {[%clk 0:01:14]} 15. Bg2 {[%clk 0:02:24]}  Rb8 {[%clk 0:01:12]} 16. axb5 {[%clk 0:02:23]}  Rxb5 {[%clk 0:01:05]} 17. Bxd4 {[%clk 0:02:20]}  Qa2 {[%clk 0:01:00]} 18. Bb2 {[%clk 0:02:13]}  Qa5 {[%clk 0:00:49]} 19. f4 {[%clk 0:02:12]}  O-O {[%clk 0:00:49]} 20. h4 {[%clk 0:02:10]}  Bb7 {[%clk 0:00:48]} 21. h5 {[%clk 0:02:10]}  Nh8 {[%clk 0:00:48]} 22. Bxb7 {[%clk 0:02:09]}  Rxb7 {[%clk 0:00:48]} 23. g4 {[%clk 0:02:05]}  Rc8 {[%clk 0:00:41]} 24. Rh3 {[%clk 0:01:59]}  Nf7 {[%clk 0:00:36]} 25. gxf5 {[%clk 0:01:58]}  exf5 {[%clk 0:00:36]} 26. Rg1 {[%clk 0:01:56]}  Bf8 {[%clk 0:00:26]} 27. Rhg3 {[%clk 0:01:51]}  Rbc7 {[%clk 0:00:24]} 28. c4 {[%clk 0:01:49]}  Nh6 {[%clk 0:00:10]} 29. Qg2 {[%clk 0:01:45]}  Ng4 {[%clk 0:00:09]} 30. Rxg4 {[%clk 0:01:42]}  fxg4 {[%clk 0:00:10]} 31. Qxg4 {[%clk 0:01:43]}  Qb6 {[%clk 0:00:08]} 32. Rg3 {[%clk 0:01:40]}  a5 {[%clk 0:00:08]} 33. f5 {[%clk 0:01:36]}  Qf2 {[%clk 0:00:07]} 34. e6 {[%clk 0:01:32]}  dxe6 {[%clk 0:00:05]} 35. f6 {[%clk 0:01:30]}  Re8 {[%clk 0:00:04]} 36. fxg7 {[%clk 0:01:18]}  Bb4 {[%clk 0:00:04]} 37. h6 {[%clk 0:01:15]}  a4 {[%clk 0:00:04]} 38. bxa4 {[%clk 0:01:12]}  Ba5 {[%clk 0:00:02]} 39. Nc3 {[%clk 0:01:11]}  Qf1+ {[%clk 0:00:02]} 40. Kc2 {[%clk 0:01:11]}  Rxc4 {[%clk 0:00:02]} 41. Qh5 {[%clk 0:01:11]} 1-0


[Site "https://www.chess.com"]

[Event "Titled Tuesday Blitz March 21 Early 2023"]
[White "Lehtosaari, Mauri"]
[Black "Starozhilov, Leonid"]
[WhiteFideId "501999"]
[BlackFideId "14106752"]
[WhiteElo "2530"]
[BlackElo "2402"]
[Result "0-1"]
[Round "10"]
[TimeControl "180+2"]
[Date "2023.03.21"]
[WhiteClock "0:00:02"]
[BlackClock "0:00:13"]

1. d4 {[%clk 0:02:53]}  Nf6 {[%clk 0:02:59]} 2. Nf3 {[%clk 0:02:49]}  g6 {[%clk 0:02:59]} 3. Bg5 {[%clk 0:02:48]}  Bg7 {[%clk 0:02:59]} 4. Nbd2 {[%clk 0:02:47]}  d6 {[%clk 0:02:59]} 5. c3 {[%clk 0:02:47]}  c5 {[%clk 0:02:53]} 6. dxc5 {[%clk 0:02:43]}  dxc5 {[%clk 0:02:53]} 7. e4 {[%clk 0:02:44]}  Nc6 {[%clk 0:02:52]} 8. Bc4 {[%clk 0:02:43]}  O-O {[%clk 0:02:51]} 9. O-O {[%clk 0:02:42]}  Qc7 {[%clk 0:02:50]} 10. Qe2 {[%clk 0:02:33]}  Nh5 {[%clk 0:02:48]} 11. Qe3 {[%clk 0:02:31]}  b6 {[%clk 0:02:45]} 12. Rfe1 {[%clk 0:02:20]}  Ne5 {[%clk 0:01:45]} 13. Nxe5 {[%clk 0:01:55]}  Bxe5 {[%clk 0:01:45]} 14. g3 {[%clk 0:01:20]}  Rd8 {[%clk 0:01:27]} 15. Rad1 {[%clk 0:01:03]}  Bb7 {[%clk 0:01:25]} 16. Bh6 {[%clk 0:00:55]}  Bg7 {[%clk 0:01:08]} 17. Bxg7 {[%clk 0:00:55]}  Kxg7 {[%clk 0:01:06]} 18. Nf3 {[%clk 0:00:55]}  Nf6 {[%clk 0:00:56]} 19. h3 {[%clk 0:00:53]}  Rxd1 {[%clk 0:00:47]} 20. Rxd1 {[%clk 0:00:53]}  Nxe4 {[%clk 0:00:42]} 21. Bd5 {[%clk 0:00:41]}  Bxd5 {[%clk 0:00:36]} 22. Rxd5 {[%clk 0:00:42]}  Nf6 {[%clk 0:00:37]} 23. Rd1 {[%clk 0:00:39]}  Rd8 {[%clk 0:00:37]} 24. Re1 {[%clk 0:00:38]}  e6 {[%clk 0:00:36]} 25. g4 {[%clk 0:00:36]}  h6 {[%clk 0:00:34]} 26. g5 {[%clk 0:00:32]}  hxg5 {[%clk 0:00:33]} 27. Nxg5 {[%clk 0:00:33]}  Rd5 {[%clk 0:00:26]} 28. h4 {[%clk 0:00:30]}  Qd7 {[%clk 0:00:26]} 29. Qf3 {[%clk 0:00:26]}  Rf5 {[%clk 0:00:25]} 30. Qe3 {[%clk 0:00:24]}  Qd5 {[%clk 0:00:22]} 31. a3 {[%clk 0:00:22]}  Nh7 {[%clk 0:00:20]} 32. Nxh7 {[%clk 0:00:21]}  Kxh7 {[%clk 0:00:19]} 33. Qg3 {[%clk 0:00:20]}  Kg7 {[%clk 0:00:19]} 34. Re3 {[%clk 0:00:19]}  Qd1+ {[%clk 0:00:19]} 35. Kg2 {[%clk 0:00:19]}  Qd5+ {[%clk 0:00:19]} 36. Kh2 {[%clk 0:00:18]}  Rh5 {[%clk 0:00:18]} 37. Kg1 {[%clk 0:00:17]}  Qd1+ {[%clk 0:00:14]} 38. Kg2 {[%clk 0:00:17]}  Qd5+ {[%clk 0:00:14]} 39. Kg1 {[%clk 0:00:17]}  a5 {[%clk 0:00:14]} 40. b4 {[%clk 0:00:12]}  axb4 {[%clk 0:00:13]} 41. axb4 {[%clk 0:00:12]}  cxb4 {[%clk 0:00:14]} 42. cxb4 {[%clk 0:00:13]}  Qc4 {[%clk 0:00:14]} 43. Rf3 {[%clk 0:00:05]}  Qxh4 {[%clk 0:00:11]} 44. Qxh4 {[%clk 0:00:05]}  Rxh4 {[%clk 0:00:12]} 45. Rb3 {[%clk 0:00:06]}  Rc4 {[%clk 0:00:10]} 46. Kg2 {[%clk 0:00:06]}  b5 {[%clk 0:00:11]} 47. Kf3 {[%clk 0:00:06]}  g5 {[%clk 0:00:11]} 48. Ke3 {[%clk 0:00:07]}  f5 {[%clk 0:00:11]} 49. f3 {[%clk 0:00:05]}  Kf6 {[%clk 0:00:12]} 50. Kd3 {[%clk 0:00:05]}  g4 {[%clk 0:00:12]} 51. fxg4 {[%clk 0:00:04]}  Rxg4 {[%clk 0:00:13]} 52. Rb1 {[%clk 0:00:05]}  Rc4 {[%clk 0:00:13]} 53. Ke3 {[%clk 0:00:04]}  f4+ {[%clk 0:00:13]} 54. Kd3 {[%clk 0:00:05]}  Kf5 {[%clk 0:00:13]} 55. Kd2 {[%clk 0:00:04]}  e5 {[%clk 0:00:13]} 56. Kd3 {[%clk 0:00:04]}  e4+ {[%clk 0:00:14]} 57. Ke2 {[%clk 0:00:05]}  Rc2+ {[%clk 0:00:13]} 58. Kd1 {[%clk 0:00:05]}  Ra2 {[%clk 0:00:13]} 59. Rc1 {[%clk 0:00:04]}  f3 {[%clk 0:00:13]} 60. Rc5+ {[%clk 0:00:04]}  Kf4 {[%clk 0:00:13]} 61. Rxb5 {[%clk 0:00:03]}  e3 {[%clk 0:00:13]} 62. Rb8 {[%clk 0:00:02]}  Ra1+ {[%clk 0:00:12]} 63. Kc2 {[%clk 0:00:02]}  e2 {[%clk 0:00:12]} 64. Rf8+ {[%clk 0:00:03]}  Kg3 {[%clk 0:00:13]} 65. Rg8+ {[%clk 0:00:02]}  Kf2 {[%clk 0:00:13]} 0-1


[Site "https://www.chess.com"]

[Event "Titled Tuesday Blitz March 21 Early 2023"]
[White "Miszler, Levente"]
[Black "Skliarov, Viktor"]
[WhiteFideId "763276"]
[BlackFideId "14106736"]
[WhiteElo "2176"]
[BlackElo "2289"]
[Result "0-1"]
[Round "10"]
[TimeControl "180+2"]
[Date "2023.03.21"]
[WhiteClock "0:00:46"]
[BlackClock "0:00:05"]

1. Nf3 {[%clk 0:03:00]}  g6 {[%clk 0:02:59]} 2. c4 {[%clk 0:03:01]}  Bg7 {[%clk 0:03:00]} 3. g3 {[%clk 0:03:01]}  Nf6 {[%clk 0:03:00]} 4. Bg2 {[%clk 0:03:01]}  O-O {[%clk 0:03:00]} 5. Nc3 {[%clk 0:03:02]}  d6 {[%clk 0:02:53]} 6. O-O {[%clk 0:03:01]}  e5 {[%clk 0:02:53]} 7. d3 {[%clk 0:03:01]}  Nc6 {[%clk 0:02:50]} 8. Rb1 {[%clk 0:03:01]}  a5 {[%clk 0:02:49]} 9. a3 {[%clk 0:03:01]}  Be6 {[%clk 0:02:46]} 10. b4 {[%clk 0:03:01]}  axb4 {[%clk 0:02:45]} 11. axb4 {[%clk 0:03:02]}  Qd7 {[%clk 0:02:46]} 12. b5 {[%clk 0:03:02]}  Nd8 {[%clk 0:02:45]} 13. Bb2 {[%clk 0:03:01]}  Bh3 {[%clk 0:02:44]} 14. Ra1 {[%clk 0:03:01]}  Bxg2 {[%clk 0:02:38]} 15. Kxg2 {[%clk 0:03:01]}  Ne6 {[%clk 0:02:38]} 16. Qb3 {[%clk 0:03:00]}  Nc5 {[%clk 0:02:34]} 17. Qc2 {[%clk 0:02:59]}  Rfe8 {[%clk 0:02:18]} 18. Rxa8 {[%clk 0:02:57]}  Rxa8 {[%clk 0:02:18]} 19. Ra1 {[%clk 0:02:58]}  Rxa1 {[%clk 0:02:16]} 20. Bxa1 {[%clk 0:02:59]}  Qe8 {[%clk 0:02:04]} 21. Nd2 {[%clk 0:02:57]}  Qa8 {[%clk 0:01:56]} 22. Qa2 {[%clk 0:02:57]}  Qxa2 {[%clk 0:01:51]} 23. Nxa2 {[%clk 0:02:58]}  Nfd7 {[%clk 0:01:47]} 24. Nb4 {[%clk 0:02:57]}  Nb6 {[%clk 0:01:44]} 25. Nd5 {[%clk 0:02:53]}  Nxd5 {[%clk 0:01:43]} 26. cxd5 {[%clk 0:02:53]}  f5 {[%clk 0:01:36]} 27. Nc4 {[%clk 0:02:53]}  Nd7 {[%clk 0:01:19]} 28. e4 {[%clk 0:02:50]}  Kf7 {[%clk 0:01:04]} 29. Kf3 {[%clk 0:02:48]}  Ke7 {[%clk 0:00:59]} 30. Bc3 {[%clk 0:02:37]}  Nc5 {[%clk 0:00:53]} 31. Ke3 {[%clk 0:02:23]}  Bh6+ {[%clk 0:00:53]} 32. f4 {[%clk 0:02:23]}  b6 {[%clk 0:00:51]} 33. exf5 {[%clk 0:02:16]}  gxf5 {[%clk 0:00:50]} 34. d4 {[%clk 0:02:17]}  exf4+ {[%clk 0:00:40]} 35. gxf4 {[%clk 0:02:18]}  Ne4 {[%clk 0:00:40]} 36. Be1 {[%clk 0:02:09]}  Bg7 {[%clk 0:00:39]} 37. Bh4+ {[%clk 0:02:09]}  Bf6 {[%clk 0:00:39]} 38. Bxf6+ {[%clk 0:01:59]}  Nxf6 {[%clk 0:00:39]} 39. Kd3 {[%clk 0:01:45]}  Nxd5 {[%clk 0:00:39]} 40. Ne3 {[%clk 0:01:42]}  Nxf4+ {[%clk 0:00:29]} 41. Kc4 {[%clk 0:01:42]}  Ke6 {[%clk 0:00:27]} 42. h4 {[%clk 0:01:38]}  h5 {[%clk 0:00:23]} 43. Nf1 {[%clk 0:01:34]}  d5+ {[%clk 0:00:18]} 44. Kc3 {[%clk 0:01:33]}  Ng2 {[%clk 0:00:14]} 45. Ng3 {[%clk 0:01:33]}  f4 {[%clk 0:00:13]} 46. Nxh5 {[%clk 0:01:33]}  f3 {[%clk 0:00:09]} 47. Kd3 {[%clk 0:01:32]}  Nxh4 {[%clk 0:00:09]} 48. Ke3 {[%clk 0:01:32]}  Nf5+ {[%clk 0:00:06]} 49. Kd3 {[%clk 0:01:29]}  Kd6 {[%clk 0:00:07]} 50. Nf6 {[%clk 0:01:23]}  f2 {[%clk 0:00:07]} 51. Ke2 {[%clk 0:01:23]}  Nxd4+ {[%clk 0:00:07]} 52. Kxf2 {[%clk 0:01:23]}  Nxb5 {[%clk 0:00:08]} 53. Ke3 {[%clk 0:01:24]}  Na7 {[%clk 0:00:07]} 54. Ne8+ {[%clk 0:01:22]}  Kc6 {[%clk 0:00:07]} 55. Kd4 {[%clk 0:01:22]}  Nb5+ {[%clk 0:00:07]} 56. Kd3 {[%clk 0:01:22]}  Nd6 {[%clk 0:00:08]} 57. Nf6 {[%clk 0:01:22]}  Nf5 {[%clk 0:00:07]} 58. Kc3 {[%clk 0:01:20]}  Kc5 {[%clk 0:00:06]} 59. Nd7+ {[%clk 0:01:20]}  Kd6 {[%clk 0:00:06]} 60. Nf6 {[%clk 0:01:19]}  c5 {[%clk 0:00:07]} 61. Ne8+ {[%clk 0:01:19]}  Kc6 {[%clk 0:00:07]} 62. Nf6 {[%clk 0:01:19]}  b5 {[%clk 0:00:07]} 63. Kb3 {[%clk 0:01:20]}  b4 {[%clk 0:00:07]} 64. Ng4 {[%clk 0:01:20]}  Nd4+ {[%clk 0:00:07]} 65. Kb2 {[%clk 0:01:20]}  Kb5 {[%clk 0:00:08]} 66. Ne3 {[%clk 0:01:20]}  Kc6 {[%clk 0:00:06]} 67. Ng4 {[%clk 0:01:20]}  Nf3 {[%clk 0:00:06]} 68. Nf6 {[%clk 0:01:19]}  c4 {[%clk 0:00:05]} 69. Ng4 {[%clk 0:01:17]}  Kc5 {[%clk 0:00:06]} 70. Ne3 {[%clk 0:01:17]}  c3+ {[%clk 0:00:06]} 71. Kb3 {[%clk 0:01:18]}  Nd4+ {[%clk 0:00:06]} 72. Ka2 {[%clk 0:01:18]}  Nb5 {[%clk 0:00:03]} 73. Kb3 {[%clk 0:01:17]}  Nd6 {[%clk 0:00:03]} 74. Nc2 {[%clk 0:01:17]}  d4 {[%clk 0:00:02]} 75. Nxb4 {[%clk 0:01:17]}  Nb5 {[%clk 0:00:02]} 76. Nd3+ {[%clk 0:01:12]}  Kd5 {[%clk 0:00:02]} 77. Nb4+ {[%clk 0:01:13]}  Ke4 {[%clk 0:00:03]} 78. Kc4 {[%clk 0:01:13]}  Na3+ {[%clk 0:00:03]} 79. Kb3 {[%clk 0:01:14]}  Nb1 {[%clk 0:00:03]} 80. Kc2 {[%clk 0:01:12]}  Nd2 {[%clk 0:00:04]} 81. Nd3 {[%clk 0:01:13]}  Nf3 {[%clk 0:00:04]} 82. Nc5+ {[%clk 0:01:12]}  Ke3 {[%clk 0:00:04]} 83. Nd3 {[%clk 0:01:10]}  Ng1 {[%clk 0:00:04]} 84. Ne5 {[%clk 0:01:09]}  Nh3 {[%clk 0:00:05]} 85. Nc4+ {[%clk 0:01:08]}  Ke2 {[%clk 0:00:05]} 86. Ne5 {[%clk 0:01:07]}  Nf4 {[%clk 0:00:05]} 87. Nc4 {[%clk 0:01:03]}  d3+ {[%clk 0:00:06]} 88. Kxc3 {[%clk 0:01:03]}  Nd5+ {[%clk 0:00:06]} 89. Kd4 {[%clk 0:01:03]}  Nb6 {[%clk 0:00:06]} 90. Nb2 {[%clk 0:00:59]}  d2 {[%clk 0:00:07]} 91. Kc3 {[%clk 0:00:59]}  Na4+ {[%clk 0:00:07]} 92. Nxa4 {[%clk 0:00:53]}  d1=Q {[%clk 0:00:07]} 93. Kb4 {[%clk 0:00:52]}  Qd4+ {[%clk 0:00:07]} 94. Kb3 {[%clk 0:00:52]}  Kf3 {[%clk 0:00:06]} 95. Nc3 {[%clk 0:00:52]}  Qb6+ {[%clk 0:00:06]} 96. Kc2 {[%clk 0:00:52]}  Qc5 {[%clk 0:00:06]} 97. Kd2 {[%clk 0:00:53]}  Kf4 {[%clk 0:00:05]} 98. Kd3 {[%clk 0:00:52]}  Qd6+ {[%clk 0:00:05]} 99. Kc4 {[%clk 0:00:52]}  Ke3 {[%clk 0:00:04]} 100. Nd5+ {[%clk 0:00:52]}  Ke4 {[%clk 0:00:04]} 101. Nc3+ {[%clk 0:00:52]}  Ke5 {[%clk 0:00:05]} 102. Kb3 {[%clk 0:00:51]}  Qc5 {[%clk 0:00:05]} 103. Na4 {[%clk 0:00:50]}  Qc6 {[%clk 0:00:05]} 104. Nc3 {[%clk 0:00:49]}  Kd4 {[%clk 0:00:05]} 105. Na2 {[%clk 0:00:47]}  Qc4+ {[%clk 0:00:05]} 106. Ka3 {[%clk 0:00:47]}  Qb5 {[%clk 0:00:05]} 107. Nb4 {[%clk 0:00:46]}  Kc4 {[%clk 0:00:05]} 108. Nc2 {[%clk 0:00:46]}  Qb3# {[%clk 0:00:05]} 0-1


[Site "https://www.chess.com"]

[Event "Titled Tuesday Blitz March 21 Early 2023"]
[White "Cuenca Jimenez, Jose Fernando"]
[Black "Eynullayev, Atilla"]
[WhiteFideId "2255570"]
[BlackFideId "13413570"]
[WhiteElo "2429"]
[BlackElo "2181"]
[Result "1-0"]
[Round "10"]
[TimeControl "180+2"]
[Date "2023.03.21"]
[WhiteClock "0:00:02"]
[BlackClock "0:00:02"]

1. c4 {[%clk 0:03:00]}  Nf6 {[%clk 0:02:59]} 2. Nc3 {[%clk 0:02:58]}  e6 {[%clk 0:03:00]} 3. Nf3 {[%clk 0:02:56]}  d5 {[%clk 0:03:00]} 4. d4 {[%clk 0:02:57]}  Nbd7 {[%clk 0:02:58]} 5. Bf4 {[%clk 0:02:56]}  Bb4 {[%clk 0:02:56]} 6. e3 {[%clk 0:02:52]}  c5 {[%clk 0:02:54]} 7. a3 {[%clk 0:02:44]}  Bxc3+ {[%clk 0:02:53]} 8. bxc3 {[%clk 0:02:45]}  Qa5 {[%clk 0:02:53]} 9. Qb3 {[%clk 0:02:18]}  O-O {[%clk 0:02:52]} 10. Nd2 {[%clk 0:02:01]}  b6 {[%clk 0:02:14]} 11. Be2 {[%clk 0:01:36]}  Ba6 {[%clk 0:02:05]} 12. Ra2 {[%clk 0:01:24]}  Rfe8 {[%clk 0:01:52]} 13. Bg3 {[%clk 0:00:54]}  e5 {[%clk 0:01:26]} 14. dxe5 {[%clk 0:00:52]}  Nxe5 {[%clk 0:01:25]} 15. Bxe5 {[%clk 0:00:49]}  Rxe5 {[%clk 0:01:24]} 16. Nf3 {[%clk 0:00:49]}  dxc4 {[%clk 0:01:13]} 17. Bxc4 {[%clk 0:00:47]}  Bxc4 {[%clk 0:01:14]} 18. Qxc4 {[%clk 0:00:48]}  Re4 {[%clk 0:01:14]} 19. Qd3 {[%clk 0:00:38]}  c4 {[%clk 0:00:37]} 20. Qc2 {[%clk 0:00:33]}  Rd8 {[%clk 0:00:26]} 21. Nd4 {[%clk 0:00:27]}  Qg5 {[%clk 0:00:22]} 22. O-O {[%clk 0:00:24]}  Rg4 {[%clk 0:00:20]} 23. g3 {[%clk 0:00:14]}  Re4 {[%clk 0:00:20]} 24. Qe2 {[%clk 0:00:13]}  Rc8 {[%clk 0:00:19]} 25. a4 {[%clk 0:00:13]}  h5 {[%clk 0:00:20]} 26. Qf3 {[%clk 0:00:08]}  g6 {[%clk 0:00:20]} 27. Rb2 {[%clk 0:00:07]}  Rc5 {[%clk 0:00:19]} 28. Rb5 {[%clk 0:00:07]}  Rxb5 {[%clk 0:00:19]} 29. axb5 {[%clk 0:00:08]}  h4 {[%clk 0:00:19]} 30. Ra1 {[%clk 0:00:08]}  Re7 {[%clk 0:00:18]} 31. Rd1 {[%clk 0:00:07]}  Ne4 {[%clk 0:00:17]} 32. Rc1 {[%clk 0:00:06]}  f5 {[%clk 0:00:16]} 33. Kg2 {[%clk 0:00:05]}  Qf6 {[%clk 0:00:15]} 34. Qf4 {[%clk 0:00:05]}  Re5 {[%clk 0:00:10]} 35. Qxh4 {[%clk 0:00:04]}  Qxh4 {[%clk 0:00:10]} 36. gxh4 {[%clk 0:00:05]}  a6 {[%clk 0:00:07]} 37. bxa6 {[%clk 0:00:05]}  Ra5 {[%clk 0:00:07]} 38. f3 {[%clk 0:00:04]}  Nc5 {[%clk 0:00:07]} 39. Rb1 {[%clk 0:00:04]}  Rxa6 {[%clk 0:00:07]} 40. Kg3 {[%clk 0:00:05]}  Ra3 {[%clk 0:00:07]} 41. Rxb6 {[%clk 0:00:04]}  Kg7 {[%clk 0:00:07]} 42. Rc6 {[%clk 0:00:04]}  Nd3 {[%clk 0:00:03]} 43. Rxc4 {[%clk 0:00:04]}  Ra2 {[%clk 0:00:03]} 44. Rc7+ {[%clk 0:00:04]}  Kf6 {[%clk 0:00:03]} 45. Rc6+ {[%clk 0:00:05]}  Kg7 {[%clk 0:00:03]} 46. Ne6+ {[%clk 0:00:05]}  Kf7 {[%clk 0:00:03]} 47. Nf4 {[%clk 0:00:06]}  Ne5 {[%clk 0:00:03]} 48. Rc5 {[%clk 0:00:04]}  Nd7 {[%clk 0:00:01]} 49. Rc7 {[%clk 0:00:05]}  Ke8 {[%clk 0:00:02]} 50. Nxg6 {[%clk 0:00:05]}  Nf6 {[%clk 0:00:02]} 51. Re7+ {[%clk 0:00:04]}  Kd8 {[%clk 0:00:02]} 52. Re5 {[%clk 0:00:04]}  f4+ {[%clk 0:00:02]} 53. Kxf4 {[%clk 0:00:04]}  Rxh2 {[%clk 0:00:02]} 54. Kg5 {[%clk 0:00:03]}  Nh7+ {[%clk 0:00:02]} 55. Kh6 {[%clk 0:00:03]}  Nf6 {[%clk 0:00:03]} 56. Rf5 {[%clk 0:00:03]}  Nd7 {[%clk 0:00:03]} 57. Kg7 {[%clk 0:00:03]}  Rg2 {[%clk 0:00:02]} 58. h5 {[%clk 0:00:04]}  Nc5 {[%clk 0:00:02]} 59. Rxc5 {[%clk 0:00:02]} 1-0


[Site "https://www.chess.com"]

[Event "Titled Tuesday Blitz March 21 Early 2023"]
[White "Fernandez Hernandez, Arturo A."]
[Black "Pinheiro, Iung Alicio de O."]
[WhiteFideId "3509230"]
[BlackFideId "2104350"]
[WhiteElo "2393"]
[BlackElo "2283"]
[Result "1-0"]
[Round "10"]
[TimeControl "180+2"]
[Date "2023.03.21"]
[WhiteClock "0:00:28"]
[BlackClock "0:00:02"]

1. e4 {[%clk 0:03:00]}  c5 {[%clk 0:02:59]} 2. Nc3 {[%clk 0:03:00]}  Nc6 {[%clk 0:02:58]} 3. Bb5 {[%clk 0:03:00]}  Nd4 {[%clk 0:02:57]} 4. Bc4 {[%clk 0:03:01]}  e6 {[%clk 0:02:57]} 5. Nf3 {[%clk 0:03:01]}  a6 {[%clk 0:02:58]} 6. Nxd4 {[%clk 0:03:01]}  cxd4 {[%clk 0:02:57]} 7. Ne2 {[%clk 0:03:02]}  Nf6 {[%clk 0:02:52]} 8. d3 {[%clk 0:03:02]}  d5 {[%clk 0:02:33]} 9. exd5 {[%clk 0:03:02]}  Nxd5 {[%clk 0:02:32]} 10. O-O {[%clk 0:03:01]}  Bc5 {[%clk 0:02:14]} 11. Nf4 {[%clk 0:03:01]}  Nf6 {[%clk 0:01:59]} 12. Nh5 {[%clk 0:02:55]}  O-O {[%clk 0:01:56]} 13. Qf3 {[%clk 0:02:45]}  Be7 {[%clk 0:01:32]} 14. Nxf6+ {[%clk 0:02:28]}  Bxf6 {[%clk 0:01:31]} 15. a4 {[%clk 0:02:22]}  e5 {[%clk 0:01:25]} 16. b3 {[%clk 0:02:12]}  Rb8 {[%clk 0:01:23]} 17. Ba3 {[%clk 0:02:11]}  Re8 {[%clk 0:01:22]} 18. a5 {[%clk 0:02:04]}  Be6 {[%clk 0:01:16]} 19. Bc5 {[%clk 0:02:03]}  Qd7 {[%clk 0:01:08]} 20. h3 {[%clk 0:01:57]}  Be7 {[%clk 0:00:57]} 21. Bb6 {[%clk 0:01:45]}  Bb4 {[%clk 0:00:54]} 22. Ra4 {[%clk 0:01:40]}  Bc3 {[%clk 0:00:53]} 23. Bxe6 {[%clk 0:01:40]}  Rxe6 {[%clk 0:00:52]} 24. Rc4 {[%clk 0:01:40]}  Rc8 {[%clk 0:00:50]} 25. Qd5 {[%clk 0:01:33]}  Qe8 {[%clk 0:00:28]} 26. Qxb7 {[%clk 0:01:33]}  Ra8 {[%clk 0:00:21]} 27. Qe4 {[%clk 0:01:16]}  h6 {[%clk 0:00:18]} 28. Rc7 {[%clk 0:01:15]}  Rc8 {[%clk 0:00:15]} 29. Rxc8 {[%clk 0:01:09]}  Qxc8 {[%clk 0:00:14]} 30. f4 {[%clk 0:01:03]}  exf4 {[%clk 0:00:13]} 31. Qxf4 {[%clk 0:01:02]}  Rf6 {[%clk 0:00:12]} 32. Qe4 {[%clk 0:01:01]}  Rxf1+ {[%clk 0:00:11]} 33. Kxf1 {[%clk 0:01:01]}  Bd2 {[%clk 0:00:10]} 34. Bxd4 {[%clk 0:00:49]}  Qxc2 {[%clk 0:00:10]} 35. Qe8+ {[%clk 0:00:47]}  Kh7 {[%clk 0:00:10]} 36. Qe4+ {[%clk 0:00:46]}  Kg8 {[%clk 0:00:09]} 37. Kg1 {[%clk 0:00:39]}  Qc1+ {[%clk 0:00:09]} 38. Kf2 {[%clk 0:00:38]}  Bg5 {[%clk 0:00:06]} 39. Kg3 {[%clk 0:00:32]}  Qc7+ {[%clk 0:00:02]} 40. Kf3 {[%clk 0:00:29]}  Qxa5 {[%clk 0:00:02]} 41. Qe8+ {[%clk 0:00:28]}  Kh7 {[%clk 0:00:02]} 42. Qxf7 {[%clk 0:00:28]} 1-0


[Site "https://www.chess.com"]